bitfinex/quotes_SOLUSD_20240808
["timestamp","ask_amount","ask_price","bid_price","bid_amount"]
[1723117821175,45.0,154.89,154.79,1.29128515]
[1723117821478,46.6142782,154.89,154.77,1.11978231]
[1723117822047,45.0,154.89,154.77,1.11978231]
[1723117822275,45.0,154.89,154.78,21.29143712]
[1723117822580,45.0,154.89,154.78,1.29143712]
[1723117823778,45.0,154.89,154.79,20.0]
[1723117823983,45.0,154.89,154.8,1.2912633]
[1723117826255,45.0,154.89,154.79,21.29133872]
[1723117826654,45.0,154.89,154.79,20.0]
[1723117827258,48.4191,154.88,154.77,20.0]
[1723117827558,36.11,154.85,154.74,20.0]
[1723117827760,45.0,154.84,154.74,20.0]
[1723117828055,12.0622,154.83,154.73,10.12070227]
[1723117828381,30.6884,154.81,154.71,41.29193585]
[1723117828695,12.0622,154.78,154.69,10.1240899]
[1723117828850,12.0622,154.78,154.67,1.29237668]
[1723117829054,30.6884,154.77,154.66,10.1262636]
[1723117829284,45.0,154.76,154.66,10.1262636]
[1723117829484,0.17,154.75,154.62,40.0]
[1723117829661,36.11,154.73,154.62,20.0]
[1723117829981,45.0,154.72,154.61,12.54728526]
[1723117830161,30.0061,154.71,154.61,12.54728526]
[1723117830580,45.0,154.7,154.61,12.54728526]
[1723117830780,45.0,154.7,154.62,1.29279514]
[1723117830970,45.0,154.7,154.61,12.54729046]
[1723117831150,45.0,154.7,154.61,12.54738757]
[1723117831964,30.0061,154.71,154.61,12.54738757]
[1723117832168,30.0061,154.71,154.63,20.0]
[1723117832385,30.0061,154.71,154.63,21.29271539]
[1723117832969,30.0061,154.71,154.63,21.29272426]
[1723117833858,30.0061,154.71,154.65,20.0]
[1723117834088,30.0061,154.71,154.67,20.0]
[1723117834390,30.0061,154.71,154.65,20.0]
[1723117834583,30.0061,154.71,154.62,21.29264631]
[1723117834880,30.0061,154.71,154.64,20.0]
[1723117835183,30.0061,154.71,154.64,21.29268851]
[1723117835568,30.0061,154.71,154.65,1.29268896]
[1723117835881,30.0061,154.71,154.67,20.0]
[1723117836066,13.3185,154.74,154.67,20.0]
[1723117836387,13.3185,154.74,154.67,1.2924057]
[1723117836582,13.3185,154.74,154.63,20.0]
[1723117836583,13.3185,154.74,154.64,1.2924057]
[1723117836890,13.3185,154.74,154.65,1.63251934]
[1723117837099,45.0,154.73,154.65,1.63251934]
[1723117837590,45.0,154.73,154.65,21.63251934]
[1723117837965,13.3185,154.74,154.68,20.0]
[1723117838164,13.3185,154.74,154.69,1.29239431]
[1723117838396,13.3185,154.74,154.65,20.34]
[1723117838577,45.0,154.73,154.66,1.29245375]
[1723117838784,45.0,154.73,154.65,21.63253791]
[1723117839801,13.3185,154.74,154.67,20.0]
[1723117840092,13.3185,154.74,154.67,21.29240526]
[1723117840467,45.0,154.73,154.65,20.34]
[1723117840775,45.0,154.73,154.63,21.29251801]
[1723117840990,45.0,154.73,154.61,13.80884802]
[1723117840991,30.2166,154.72,154.61,13.80884802]
[1723117841289,45.0,154.71,154.62,1.29286968]
[1723117842200,45.0,154.71,154.62,21.29286968]
[1723117842567,45.0,154.71,154.62,1.29286968]
[1723117842783,45.0,154.71,154.6,21.12576256]
[1723117842991,45.0,154.71,154.58,26.75298264]
[1723117842992,0.34,154.7,154.58,26.75298264]
[1723117843180,0.34,154.7,154.59,0.34]
[1723117843477,0.17,154.7,154.6,21.29299898]
[1723117843679,45.0,154.71,154.6,21.29299898]
[1723117844469,45.0,154.71,154.6,20.0]
[1723117844676,45.0,154.71,154.6,21.29296563]
[1723117844980,12.6966,154.7,154.6,21.29296563]
[1723117845194,45.0,154.69,154.62,20.0]
[1723117845400,45.0,154.69,154.63,1.29284606]
[1723117845596,45.0,154.69,154.62,21.29284606]
[1723117846281,12.6966,154.7,154.62,21.29284606]
[1723117846876,45.0,154.69,154.62,20.0]
[1723117847200,12.6966,154.7,154.62,20.0]
[1723117847385,12.6966,154.7,154.63,1.6327732]
[1723117847981,12.6966,154.7,154.63,1.2927732]
[1723117848374,12.6966,154.7,154.64,20.0]
[1723117848571,30.2166,154.72,154.67,20.0]
[1723117848802,12.0307,154.75,154.69,20.0]
[1723117849004,12.0307,154.75,154.7,1.29227886]
[1723117849180,12.0307,154.75,154.71,1.29223847]
[1723117849692,32.6489,154.77,154.72,20.0]
[1723117850008,32.6489,154.77,154.73,1.29211596]
[1723117850303,13.1012,154.79,154.74,0.17]
[1723117850600,13.1012,154.79,154.74,21.63189199]
[1723117851182,12.4489,154.84,154.76,20.0]
[1723117851377,12.4489,154.84,154.8,20.0]
[1723117852604,12.4489,154.84,154.79,20.0]
[1723117852810,12.4489,154.84,154.76,21.29151428]
[1723117852988,12.4489,154.84,154.77,1.29166217]
[1723117853609,12.4489,154.84,154.78,20.17]
[1723117853816,12.4489,154.84,154.79,1.29155748]
[1723117854015,12.4489,154.84,154.78,20.17]
[1723117854016,32.4867,154.85,154.8,1.29151169]
[1723117854403,32.4867,154.85,154.8,21.29151169]
[1723117854704,32.4867,154.85,154.8,20.0]
[1723117854883,32.4867,154.85,154.78,1.46145341]
[1723117854884,32.4867,154.85,154.75,20.0]
[1723117855088,32.4867,154.85,154.75,21.29174141]
[1723117855288,32.4867,154.85,154.78,20.0]
[1723117855485,32.4867,154.85,154.78,21.29151732]
[1723117856294,32.4867,154.85,154.77,0.17]
[1723117856520,32.4867,154.85,154.76,0.17]
[1723117856820,32.4867,154.85,154.72,20.0]
[1723117857125,32.4867,154.85,154.72,21.29187156]
[1723117857296,45.34,154.84,154.72,1.29202814]
[1723117857809,45.34,154.84,154.73,20.0]
[1723117858008,45.34,154.84,154.74,1.29185827]
[1723117858206,45.0,154.84,154.76,20.0]
[1723117858414,45.0,154.84,154.77,1.29165426]
[1723117859726,45.0,154.84,154.72,22.58022133]
[1723117860014,0.34,154.83,154.72,1.29192066]
[1723117860514,0.34,154.83,154.71,20.34]
[1723117860701,0.34,154.83,154.71,20.17]
[1723117861099,0.34,154.83,154.72,1.2919821]
[1723117861305,81.11,154.84,154.74,20.0]
[1723117861499,81.11,154.84,154.71,20.0]
[1723117861700,0.34,154.83,154.71,21.29199928]
[1723117862496,45.0,154.84,154.74,20.0]
[1723117862699,32.4867,154.85,154.76,20.0]
[1723117862999,32.4867,154.85,154.75,1.2917392]
[1723117863354,32.4867,154.85,154.76,0.17]
[1723117863524,32.4867,154.85,154.76,1.29175366]
[1723117863826,32.4867,154.85,154.73,20.0]
[1723117864016,45.34,154.84,154.73,20.0]
[1723117864494,31.4586,154.82,154.69,20.0]
[1723117864695,31.4586,154.82,154.66,20.0]
[1723117864696,81.45,154.81,154.66,20.0]
[1723117864997,31.4586,154.79,154.67,1.29238028]
[1723117865301,31.4586,154.79,154.63,7.87192269]
[1723117865302,12.7589,154.77,154.63,22.41717342]
[1723117865507,0.17,154.76,154.63,22.41717342]
[1723117865725,30.4554,154.75,154.63,22.41717342]
[1723117866024,30.4554,154.75,154.6,6.75276053]
[1723117866025,45.34,154.74,154.61,21.29272497]
[1723117866196,45.0,154.74,154.63,20.0]
[1723117866397,30.4554,154.75,154.64,21.29261566]
[1723117866609,30.4554,154.75,154.65,1.29251462]
[1723117866914,45.0,154.74,154.65,1.29251462]
[1723117867717,30.4554,154.75,154.66,20.0]
[1723117868030,30.4554,154.75,154.69,20.0]
[1723117868215,30.4554,154.75,154.7,1.29227766]
[1723117868391,30.4554,154.75,154.7,1.29236947]
[1723117868812,30.4554,154.75,154.7,20.0]
[1723117869196,30.4554,154.75,154.71,0.34]
[1723117869519,30.4554,154.75,154.71,0.17]
[1723117870018,30.4554,154.75,154.68,40.0]
[1723117870221,30.4554,154.75,154.68,21.29236456]
[1723117870392,30.4554,154.75,154.68,20.0]
[1723117870594,30.4554,154.75,154.68,21.29236456]
[1723117870794,30.4554,154.75,154.69,0.17]
[1723117870993,30.4554,154.75,154.68,20.0]
[1723117871408,30.4554,154.75,154.63,2.52623082]
[1723117871600,45.0,154.74,154.64,1.29236572]
[1723117871794,45.0,154.74,154.65,1.29260639]
[1723117872790,0.17,154.73,154.62,20.0]
[1723117873010,45.0,154.74,154.64,20.0]
[1723117873228,45.0,154.74,154.65,1.29260842]
[1723117873932,45.0,154.74,154.64,21.46261589]
[1723117874098,30.4554,154.75,154.66,20.0]
[1723117874298,45.0,154.74,154.66,20.0]
[1723117874493,30.4554,154.75,154.67,0.17]
[1723117874726,45.0,154.74,154.66,20.0]
[1723117875200,45.0,154.74,154.65,1.63253739]
[1723117875402,45.0,154.74,154.66,0.17]
[1723117875629,30.4554,154.75,154.67,20.0]
[1723117875923,30.4554,154.75,154.68,1.46238772]
[1723117877204,30.4554,154.75,154.68,0.17]
[1723117878231,30.4554,154.75,154.69,20.0]
[1723117879304,30.4554,154.75,154.68,1.29234968]
[1723117880005,30.4554,154.75,154.68,21.29234968]
[1723117880815,30.4554,154.75,154.69,0.17]
[1723117881012,30.4554,154.75,154.72,20.0]
[1723117881220,30.4554,154.75,154.7,20.0]
[1723117881397,30.4554,154.75,154.71,0.34]
[1723117881601,30.4554,154.75,154.72,20.0]
[1723117883208,30.4554,154.75,154.71,0.34]
[1723117883517,30.4554,154.75,154.7,0.34]
[1723117884324,32.6949,154.79,154.74,20.0]
[1723117884624,32.6949,154.79,154.75,1.46181642]
[1723117884800,12.3042,154.81,154.77,20.0]
[1723117885001,12.3042,154.81,154.78,1.29178937]
[1723117885204,31.208,154.83,154.78,1.29178937]
[1723117885501,12.3042,154.86,154.79,21.46164884]
[1723117887136,12.5746,154.9,154.83,20.0]
[1723117887426,12.5746,154.9,154.8,0.17]
[1723117887427,12.5746,154.9,154.86,20.0]
[1723117887600,12.5746,154.9,154.87,1.29103469]
[1723117889323,30.3562,154.91,154.87,1.29103469]
[1723117889500,30.3562,154.91,154.86,20.34]
[1723117889699,30.3562,154.91,154.84,21.29093624]
[1723117889924,30.3562,154.91,154.81,21.29103292]
[1723117890099,30.3562,154.91,154.82,20.0]
[1723117890304,30.3562,154.91,154.83,1.29133181]
[1723117890809,45.0,154.9,154.81,20.0]
[1723117891012,45.0,154.9,154.79,22.49712995]
[1723117891224,30.3562,154.91,154.83,20.0]
[1723117891524,30.3562,154.91,154.81,20.0]
[1723117891724,30.3562,154.91,154.82,1.29120259]
[1723117892608,45.0,154.9,154.81,20.34]
[1723117892908,45.0,154.9,154.81,21.63130434]
[1723117893214,30.3562,154.91,154.82,1.2912889]
[1723117893410,30.3562,154.91,154.84,20.0]
[1723117893732,30.3562,154.91,154.85,0.34]
[1723117893912,30.3562,154.91,154.84,20.0]
[1723117894119,30.3562,154.91,154.81,1.2910287]
[1723117894120,30.3562,154.91,154.81,21.29111042]
[1723117894425,30.3562,154.91,154.82,0.17]
[1723117894632,30.3562,154.91,154.81,20.0]
[1723117894808,45.0,154.9,154.81,20.0]
[1723117897133,30.3562,154.91,154.83,20.0]
[1723117897324,30.3562,154.91,154.85,20.0]
[1723117897544,30.3562,154.91,154.86,1.29102873]
[1723117898914,12.4731,154.94,154.89,20.0]
[1723117899504,30.8561,154.96,154.9,1.29074316]
[1723117899816,30.8561,154.96,154.91,20.0]
[1723117901606,30.8561,154.96,154.92,0.34]
[1723117902002,30.8561,154.96,154.91,20.0]
[1723117902926,30.8561,154.96,154.89,20.0]
[1723117903108,30.8561,154.96,154.9,1.29071122]
[1723117904332,30.8561,154.96,154.89,7.37385471]
[1723117904333,45.0,154.95,154.89,7.37385471]
[1723117905115,45.0,154.95,154.84,31.2041401]
[1723117905322,45.0,154.95,154.84,27.37623583]
[1723117906233,32.2768,154.93,154.84,7.37623583]
[1723117906416,45.34,154.92,154.79,23.83029338]
[1723117906613,45.34,154.92,154.79,21.29119159]
[1723117907118,45.0,154.92,154.81,20.0]
[1723117907326,45.0,154.92,154.84,20.0]
[1723117907524,45.0,154.92,154.84,21.29106917]
[1723117907733,45.0,154.92,154.84,20.0]
[1723117908536,45.0,154.92,154.85,1.29107569]
[1723117909034,45.0,154.92,154.83,0.34]
[1723117909035,32.2768,154.93,154.86,21.46105894]
[1723117909233,32.2768,154.93,154.87,0.17]
[1723117909542,32.2768,154.93,154.84,20.0]
[1723117909840,32.2768,154.93,154.85,21.63100536]
[1723117910131,32.2768,154.93,154.86,1.2909797]
[1723117910330,32.2768,154.93,154.87,21.46097735]
[1723117910526,32.2768,154.93,154.87,21.29097735]
[1723117911333,32.2768,154.93,154.89,20.0]
[1723117912728,32.2768,154.93,154.86,21.29082624]
[1723117912945,32.2768,154.93,154.85,20.17]
[1723117913320,32.2768,154.93,154.86,20.0]
[1723117913515,32.2768,154.93,154.86,21.2909627]
[1723117913822,45.0,154.92,154.81,22.59912588]
[1723117914028,46.61416699,154.92,154.78,20.0]
[1723117914236,0.34,154.91,154.78,21.29149564]
[1723117914416,0.34,154.91,154.78,20.0]
[1723117914622,0.34,154.91,154.76,1.29148685]
[1723117914623,33.0447,154.89,154.76,20.0]
[1723117914938,33.0447,154.86,154.74,20.0]
[1723117915128,33.0447,154.86,154.7,41.19570412]
[1723117915129,1.61491356,154.85,154.72,20.0]
[1723117915325,45.0,154.85,154.72,21.29201582]
[1723117915522,45.0,154.85,154.72,45.865658]
[1723117915858,0.17,154.84,154.72,20.0]
[1723117916047,0.34,154.84,154.72,20.0]
[1723117916349,0.34,154.84,154.72,21.29208824]
[1723117916514,0.17,154.84,154.74,20.0]
[1723117916714,45.0,154.85,154.74,20.0]
[1723117916940,45.0,154.85,154.75,1.29194763]
[1723117917323,45.0,154.85,154.77,20.0]
[1723117917522,45.0,154.85,154.78,1.29170642]
[1723117917741,33.0447,154.86,154.77,21.29170767]
[1723117917921,33.0447,154.86,154.78,0.34]
[1723117918518,33.0447,154.86,154.79,20.0]
[1723117918913,33.0447,154.86,154.81,20.0]
[1723117919116,33.0447,154.86,154.82,1.29143985]
[1723117919344,33.0447,154.86,154.83,0.17]
[1723117919524,33.0447,154.86,154.83,0.34]
[1723117919723,12.8805,154.87,154.83,20.34]
[1723117919925,12.8805,154.87,154.85,20.0]
[1723117920149,32.6832,154.9,154.85,20.0]
[1723117920451,32.6832,154.9,154.86,0.17]
[1723117920623,32.6832,154.9,154.87,20.0]
[1723117920829,32.6832,154.9,154.86,0.17]
[1723117921025,32.6832,154.9,154.84,20.0]
[1723117921231,32.6832,154.9,154.83,0.34]
[1723117921431,32.6832,154.9,154.85,20.0]
[1723117921637,32.6832,154.9,154.84,0.17]
[1723117921846,32.6832,154.9,154.83,0.17]
[1723117922026,32.6832,154.9,154.82,0.17]
[1723117922232,32.6832,154.9,154.81,20.0]
[1723117922450,32.6832,154.9,154.8,20.0]
[1723117922636,45.0,154.89,154.79,21.29143127]
[1723117922829,45.0,154.89,154.77,20.0]
[1723117923252,0.34,154.88,154.77,20.0]
[1723117924239,45.0,154.89,154.79,20.0]
[1723117924437,45.0,154.89,154.8,1.29159208]
[1723117924851,45.0,154.89,154.79,20.0]
[1723117925051,32.6832,154.9,154.81,20.0]
[1723117925356,32.6832,154.9,154.83,20.0]
[1723117925656,32.6832,154.9,154.81,20.0]
[1723117926730,45.0,154.89,154.78,40.0]
[1723117926944,46.78453152,154.89,154.78,20.0]
[1723117927142,45.17,154.89,154.79,20.0]
[1723117927340,45.0,154.89,154.79,20.0]
[1723117928758,32.6832,154.9,154.81,20.0]
[1723117928965,32.6832,154.9,154.79,20.0]
[1723117929131,1.61419749,154.89,154.78,22.72560776]
[1723117929558,1.61419749,154.89,154.78,20.17]
[1723117929733,32.6832,154.9,154.78,20.17]
[1723117930052,32.6832,154.9,154.81,20.0]
[1723117930249,32.6832,154.9,154.81,21.29137008]
[1723117930437,32.6832,154.9,154.82,0.17]
[1723117930633,32.6832,154.9,154.83,20.0]
[1723117930838,32.6832,154.9,154.84,20.0]
[1723117931445,32.6832,154.9,154.79,20.0]
[1723117931754,32.6832,154.9,154.8,20.17]
[1723117932128,34.29757284,154.9,154.8,20.0]
[1723117932335,46.78457734,154.89,154.78,20.0]
[1723117932536,12.1819,154.88,154.77,20.0]
[1723117932732,45.0,154.87,154.76,1.29169465]
[1723117932935,45.17,154.87,154.75,22.54756527]
[1723117934170,45.17,154.87,154.76,20.34]
[1723117934748,45.0,154.87,154.76,20.34]
[1723117935256,45.0,154.87,154.77,20.0]
[1723117935449,45.0,154.87,154.78,20.0]
[1723117935650,45.0,154.87,154.78,21.29173964]
[1723117935866,12.1819,154.88,154.8,20.0]
[1723117936849,12.1819,154.88,154.8,21.29148199]
[1723117937260,12.1819,154.88,154.82,20.0]
[1723117937566,32.6832,154.9,154.84,20.0]
[1723117937769,32.6832,154.9,154.86,20.0]
[1723117938061,32.6832,154.9,154.87,1.46108916]
[1723117938241,32.6832,154.9,154.85,0.17]
[1723117938441,32.6832,154.9,154.84,20.17]
[1723117938845,32.6832,154.9,154.85,20.0]
[1723117939244,32.6832,154.9,154.84,22.6110658]
[1723117939547,32.6832,154.9,154.81,22.61080989]
[1723117939855,32.6832,154.9,154.86,20.0]
[1723117940034,32.6832,154.9,154.87,0.17]
[1723117940359,32.6832,154.9,154.86,1.29107076]
[1723117940560,32.6832,154.9,154.85,0.17]
[1723117940948,32.6832,154.9,154.84,20.0]
[1723117941267,32.6832,154.9,154.85,20.0]
[1723117941466,32.6832,154.9,154.82,20.0]
[1723117941666,32.6832,154.9,154.83,20.0]
[1723117941867,32.6832,154.9,154.83,1.29136756]
[1723117942158,32.6832,154.9,154.84,20.0]
[1723117942345,32.6832,154.9,154.86,20.0]
[1723117942545,13.3318,154.92,154.88,20.0]
[1723117944446,13.3318,154.92,154.87,0.34]
[1723117944649,13.3318,154.92,154.88,20.0]
[1723117944973,13.3318,154.92,154.88,21.29093427]
[1723117945138,13.3318,154.92,154.88,20.0]
[1723117945562,13.3318,154.92,154.87,0.17]
[1723117945878,13.3318,154.92,154.87,20.17]
[1723117946048,13.3318,154.92,154.88,1.2909729]
[1723117946756,13.3318,154.92,154.87,20.34]
[1723117946937,13.3318,154.92,154.88,0.17]
[1723117947358,13.3318,154.92,154.86,2.60347609]
[1723117947574,13.3318,154.92,154.87,1.29112164]
[1723117947748,13.3318,154.92,154.81,20.0]
[1723117948565,13.3318,154.92,154.84,20.0]
[1723117948771,13.3318,154.92,154.85,1.29124357]
[1723117950271,13.3318,154.92,154.82,20.0]
[1723117950444,13.3318,154.92,154.83,1.29126355]
[1723117950651,45.0,154.91,154.8,20.0]
[1723117950856,45.0,154.91,154.81,0.34]
[1723117951045,13.3239,154.89,154.76,45.859815]
[1723117951355,13.3239,154.86,154.74,20.0]
[1723117951676,13.3239,154.86,154.72,11.24142272]
[1723117951677,78.44141711,154.85,154.72,30.11664368]
[1723117951973,30.6332,154.83,154.72,20.0]
[1723117952155,13.1519,154.81,154.7,10.12429325]
[1723117952359,45.0,154.8,154.7,10.12429325]
[1723117953393,32.847,154.79,154.7,10.12429325]
[1723117953574,45.0,154.78,154.7,10.12429325]
[1723117953753,32.847,154.79,154.7,20.24858625]
[1723117953948,32.847,154.79,154.71,28.67482104]
[1723117954372,32.847,154.79,154.73,20.0]
[1723117954570,32.847,154.79,154.75,20.0]
[1723117954760,32.847,154.79,154.76,46.4619414]
[1723117954959,31.9022,154.84,154.77,21.2919414]
[1723117955150,31.9022,154.84,154.79,20.0]
[1723117955577,31.9022,154.84,154.8,1.2916413]
[1723117955762,31.9022,154.84,154.8,21.2916413]
[1723117956073,31.9022,154.84,154.81,20.34]
[1723117956673,31.9022,154.84,154.8,20.0]
[1723117957279,31.9022,154.84,154.77,20.0]
[1723117957280,31.9022,154.84,154.79,20.34]
[1723117957458,31.9022,154.84,154.8,20.0]
[1723117957780,31.9022,154.84,154.8,21.2916367]
[1723117958783,31.9022,154.84,154.8,20.0]
[1723117958965,31.9022,154.84,154.79,20.0]
[1723117959167,31.9022,154.84,154.8,20.0]
[1723117959358,31.9022,154.84,154.8,21.2916409]
[1723117959779,31.9022,154.84,154.8,20.0]
[1723117961290,31.9022,154.84,154.78,0.34]
[1723117961477,31.9022,154.84,154.78,20.34]
[1723117961665,31.9022,154.84,154.78,20.0]
[1723117962080,31.9022,154.84,154.77,2.52066382]
[1723117962385,31.9022,154.84,154.77,20.0]
[1723117962682,31.9022,154.84,154.78,21.29178604]
[1723117963563,31.9022,154.84,154.78,20.0]
[1723117964390,31.9022,154.84,154.79,20.34]
[1723117966495,31.9022,154.84,154.8,1.29161001]
[1723117967374,31.9022,154.84,154.79,20.34]
[1723117967890,31.9022,154.84,154.81,20.0]
[1723117970278,31.9022,154.84,154.79,0.34]
[1723117971172,31.9022,154.84,154.79,1.63164831]
[1723117971493,31.9022,154.84,154.8,20.0]
[1723117971691,31.9022,154.84,154.81,1.29159429]
[1723117971891,31.9022,154.84,154.8,20.0]
[1723117972570,31.9022,154.84,154.79,0.34]
[1723117972771,31.9022,154.84,154.79,45.34]
[1723117972970,31.9022,154.84,154.8,20.0]
[1723117973195,31.9022,154.84,154.79,0.34]
[1723117974191,31.9022,154.84,154.79,0.17]
[1723117974493,31.9022,154.84,154.78,40.0]
[1723117975494,31.9022,154.84,154.76,22.56429448]
[1723117975666,31.9022,154.84,154.77,1.29171989]
[1723117977378,31.9022,154.84,154.77,21.29171989]
[1723117977778,31.9022,154.84,154.77,20.0]
[1723117978695,31.9022,154.84,154.77,1.29192513]
[1723117978891,31.9022,154.84,154.77,21.29192513]
[1723117979399,31.9022,154.84,154.78,20.17]
[1723117979596,31.9022,154.84,154.8,20.0]
[1723117979782,12.3025,154.86,154.83,20.0]
[1723117979982,260.7,154.92,154.83,21.29140376]
[1723117980191,296.81,154.99,154.83,21.29140376]
[1723117980384,36.11,154.96,154.79,20.0]
[1723117980577,1.61465465,154.95,154.8,20.0]
[1723117980781,1.61465465,154.95,154.81,0.34]
[1723117980978,1.61465465,154.95,154.8,20.0]
[1723117981188,21.61465465,154.95,154.8,20.0]
[1723117981593,45.34,154.94,154.8,20.0]
[1723117981779,1.61448007,154.93,154.8,20.0]
[1723117982101,0.34,154.92,154.8,20.0]
[1723117982308,1.95451873,154.92,154.79,20.34]
[1723117982505,1.95451873,154.92,154.79,20.0]
[1723117982683,46.95451873,154.92,154.78,20.0]
[1723117982878,30.4516,154.91,154.79,20.0]
[1723117983073,13.1405,154.89,154.77,20.17]
[1723117983278,30.4516,154.87,154.77,20.0]
[1723117983480,1.7849486,154.86,154.74,26.74476066]
[1723117983703,30.4516,154.87,154.83,20.0]
[1723117983912,20.36768952,154.87,154.83,20.0]
[1723117984407,20.36768952,154.87,154.84,1.29137128]
[1723117984701,13.2285,154.98,154.85,20.0]
[1723117984902,13.2285,154.98,154.87,20.0]
[1723117985108,13.2285,154.98,154.89,20.0]
[1723117985601,13.2285,154.98,154.9,20.0]
[1723117985779,13.2285,154.98,154.85,20.0]
[1723117985980,13.2285,154.98,154.86,20.34]
[1723117986503,45.34,154.97,154.86,20.34]
[1723117986884,33.2171,154.96,154.86,20.34]
[1723117987099,33.2171,154.96,154.86,20.0]
[1723117987307,45.34,154.95,154.84,20.0]
[1723117987485,45.34,154.95,154.85,21.29130744]
[1723117987692,45.0,154.95,154.86,20.0]
[1723117988903,33.2171,154.96,154.87,20.0]
[1723117989300,33.2171,154.96,154.86,20.0]
[1723117990310,45.0,154.95,154.86,20.0]
[1723117991501,45.0,154.95,154.86,21.29120933]
[1723117992198,45.0,154.95,154.86,20.0]
[1723117992714,0.17,154.94,154.86,20.0]
[1723117993013,45.0,154.95,154.84,21.29130378]
[1723117993188,45.0,154.95,154.85,20.0]
[1723117993394,45.0,154.95,154.86,20.0]
[1723117993599,45.0,154.95,154.87,1.29119398]
[1723117993796,45.0,154.95,154.86,21.29116497]
[1723117993990,33.2171,154.96,154.87,20.0]
[1723117994203,33.2171,154.96,154.88,1.29107182]
[1723117995104,33.2171,154.96,154.87,20.0]
[1723117995508,33.2171,154.96,154.88,1.29107337]
[1723117995697,33.2171,154.96,154.88,20.0]
[1723117996519,33.2171,154.96,154.89,20.17]
[1723117996704,33.2171,154.96,154.9,20.0]
[1723117997318,33.2171,154.96,154.91,20.0]
[1723117997517,33.2171,154.96,154.92,21.29073551]
[1723117997900,33.2171,154.96,154.92,20.0]
[1723117998099,33.2171,154.96,154.9,20.0]
[1723117998524,33.2171,154.96,154.91,20.0]
[1723117998822,33.2171,154.96,154.92,20.0]
[1723117999615,33.2171,154.96,154.9,20.0]
[1723118000128,13.2285,154.98,154.92,20.0]
[1723118000324,7997.98943055,155.0,154.94,20.0]
[1723118000527,7997.98943055,155.0,154.95,48.02]
[1723118001504,7960.14083947,155.0,154.98,20.0]
[1723118001827,7960.14083947,155.0,154.99,20.17]
[1723118002009,7960.14083947,155.0,154.99,20.0]
[1723118002403,7960.14083947,155.0,154.97,20.0]
[1723118002828,7960.14083947,155.0,154.95,22.5981222]
[1723118003016,7960.14083947,155.0,154.97,20.0]
[1723118004200,7960.14083947,155.0,154.99,20.0]
[1723118004510,7947.44086837,155.0,154.99,85.34]
[1723118005131,7937.72086837,155.0,154.99,85.34]
[1723118005635,7931.55086837,155.0,154.99,85.34]
[1723118005846,7876.35628313,155.0,154.99,85.34]
[1723118006127,7855.72628313,155.0,154.99,85.34]
[1723118006336,7836.35428313,155.0,154.99,85.34]
[1723118006924,7825.03428313,155.0,154.99,85.34]
[1723118007239,7807.78428313,155.0,154.99,85.34]
[1723118007531,7807.78428313,155.0,154.99,105.34]
[1723118007829,7796.94928313,155.0,154.99,105.34]
[1723118008335,7789.77128313,155.0,154.99,107.87390333]
[1723118008624,7782.40266149,155.0,154.99,22.53390333]